fUSD/lending_fUSD_20250807
["ID","MTS","AMOUNT","RATE_DAILY","PERIOD"]
[377856894,1754579432672,-2500.0,0.000188,2]
[377856895,1754579432681,-5400.0,0.000188,6]
[377856896,1754579432691,-8310.35120249,0.0001881,2]
[377856897,1754579432700,-1277.09661,0.0001881,2]
[377856898,1754579432710,-500.0,0.00018854,2]
[377856899,1754579432720,-374.71,0.00018878,2]
[377856900,1754579432729,-1049.803,0.0001888,2]
[377856901,1754579432738,-176.01147606,0.0001888,2]
[377856902,1754579432748,-413.96440333,0.0001889,2]
[377856903,1754579432757,-6021.22118999,0.00018892,2]
[377856904,1754579432769,-4922.72754622,0.00018894,2]
[377856906,1754579432779,-1202.57549176,0.00018899,5]
[377856907,1754579432788,-425.33524602,0.00018899,5]
[377856909,1754579432797,-500.0,0.00018899,2]
[377856911,1754579432806,-278.95445894,0.00018899,2]
[377856914,1754579432815,-9432.0668818,0.000189,2]
[377856918,1754579432827,-17937.37038327,0.000189,2]
[377856926,1754579432851,-1873.42963391,0.000189,2]
[377856930,1754579432876,-2103.69674635,0.000189,2]
[377856932,1754579438067,-268.1436521,0.000189,2]
[377856933,1754579438079,-420.92589532,0.000189,2]
[377857034,1754579440426,-800.69364888,0.000189,2]
[377857043,1754579440507,-1371.03341751,0.000189,2]
[377857390,1754579443889,-1147.13999999,0.000189,2]
[377858054,1754579455790,666.0,0.00018073,3]
[377858061,1754579549425,150.0,0.0001748,2]
[377858062,1754579549778,411.92932098,0.00017559,2]
[377858063,1754579550074,483.1269814,0.00017639,2]
[377858064,1754579550683,554.32464181,0.00017718,2]
[377858065,1754579550914,625.52230223,0.00017798,2]
[377858066,1754579551136,696.71996264,0.00017877,2]
[377858067,1754579551486,767.91762306,0.00017957,2]
[377858069,1754579574655,1000.0,0.00017838,2]
[377858071,1754579587946,157.55,0.00017808,2]
[377858074,1754579619580,150.0,0.00017644,2]
[377858075,1754579619894,444.27572295,0.00017724,2]
[377858076,1754579620213,521.06411951,0.00017804,2]
[377858077,1754579620565,597.85251607,0.00017885,2]
[377858078,1754579620935,674.64091263,0.00017965,2]
[377858081,1754579678068,415.83117217,0.00017724,2]
[377858082,1754579678710,150.0,0.00017644,2]
[377858083,1754579678955,487.70322661,0.00017804,2]
[377858084,1754579679289,559.57528106,0.00017885,2]
[377858085,1754579679638,631.44733551,0.00017965,2]
[377858086,1754579684366,150.0,0.000168,2]
[377858087,1754579684744,150.0,0.0001798,2]
[377858089,1754579721145,601.0,0.00018006,2]
[377858097,1754579772749,150.0,0.00017644,2]
[377858098,1754579773228,423.21405566,0.00017724,2]
[377858099,1754579773661,190.89,0.00013699,2]
[377858100,1754579776291,496.36216405,0.00017804,2]
[377858101,1754579776475,569.51027243,0.00017885,2]
[377858102,1754579776649,642.65838082,0.00017965,2]
[377858104,1754579790809,989.0,0.00018006,2]
[377858105,1754579805777,312.6810042,0.00017916,2]
[377858106,1754579881345,431.28693077,0.00017724,2]
[377858107,1754579881615,150.0,0.00017644,2]
[377858109,1754579882025,580.37377104,0.00017885,2]
[377858110,1754579882246,505.83035091,0.00017804,2]
[377858111,1754579882591,654.91719118,0.00017965,2]
[377858115,1754579976128,167.84,0.00017742,2]
[377858119,1754580048708,182.23201175,0.00017945,2]
[377858122,1754580073157,253.72,0.00017769,2]
[377858132,1754580132287,728.27,0.00017759,2]
[377858134,1754580184558,427.58,0.00015068,2]
[377858135,1754580184775,427.58,0.00016652,2]
[377858136,1754580204135,150.0,0.0001748,2]
[377858137,1754580204509,418.80900738,0.00017559,2]
[377858138,1754580205391,491.1957494,0.00017639,2]
[377858139,1754580205552,563.58249141,0.00017718,2]
[377858140,1754580205658,635.96923343,0.00017798,2]
[377858141,1754580205907,708.35597544,0.00017877,2]
[377858142,1754580206187,780.74271746,0.00017957,2]
[377858143,1754580209603,150.0,0.000168,2]
[377858144,1754580211046,150.0,0.0001798,2]
[377858145,1754580211654,500.0,0.000175,2]
[377858148,1754580315080,2189.02652152,0.000121,30]
[377858149,1754580319591,150.0,0.00017088,2]
[377858150,1754580320984,150.0,0.00017721,2]
[377858151,1754580323518,150.0,0.00017088,2]
[377858152,1754580325983,150.0,0.00017088,2]
[377858153,1754580343231,421.10011263,0.0002,30]
[377858157,1754580408520,666.0,0.00017764,3]
[377858159,1754580495857,196.14,0.00014178,2]
[377858161,1754580517498,150.0,0.0001748,2]
[377858162,1754580517905,410.37343961,0.00017559,2]
[377858163,1754580518179,481.30218226,0.00017639,2]
[377858164,1754580518353,552.23092491,0.00017718,2]
[377858165,1754580518504,5967.82451771,0.000151,2]
[377858166,1754580518567,623.15966756,0.00017798,2]
[377858167,1754580518710,694.08841021,0.00017877,2]
[377858168,1754580518991,765.01715286,0.00017957,2]
[377858170,1754580555472,517.0,0.0001753,2]
[377858173,1754580565573,1000.0,0.00017709,2]
[377858194,1754580632372,-835.94589551,0.00018036,2]
[377858195,1754580632382,-250.0,0.00018076,2]
[377858196,1754580632392,-906.87463816,0.00018116,2]
[377858197,1754580632402,-977.80338081,0.00018195,2]
[377858198,1754580632411,-323.23368809,0.00018236,2]
[377858199,1754580632463,-104.34631191,0.00018236,2]
[377858200,1754580632472,-390.56670404,0.00018275,2]
[377858201,1754580632488,-586.51541478,0.00018275,2]
[377858202,1754580632499,-71.65000464,0.00018275,2]
[377858203,1754580632509,-150.0,0.00018353,2]
[377858204,1754580632518,-402.89944781,0.00018354,2]
[377858205,1754580632531,-716.7614183,0.00018354,2]
[377858206,1754580632541,-2.60593833,0.00018429,2]
[377858207,1754580632554,-633.97471833,0.00018429,2]
[377858208,1754580632563,-1190.58960876,0.00018434,2]
[377858209,1754580632573,-1200.0,0.00018498,2]
[377858210,1754580632582,-300.0,0.00018499,2]
[377858211,1754580632592,-300.0,0.00018499,2]
[377858212,1754580632601,-1400.0,0.000185,6]
[377858213,1754580632611,-1261.51835141,0.00018513,2]
[377858214,1754580632620,-167.48,0.00018544,2]
[377858215,1754580632630,-500.0,0.00018548,2]
[377858216,1754580632639,-1332.44709406,0.00018593,2]
[377858217,1754580632649,-193.29,0.00018597,2]
[377858218,1754580632658,-1220.0373161,0.000186,6]
[377858219,1754580632671,-1679.9626839,0.000186,6]
[377858220,1754580632680,-295.0,0.00018639,2]
[377858221,1754580632691,-253.72,0.00018657,2]
[377858222,1754580632700,-267.46074303,0.00018658,2]
[377858223,1754580632710,-1403.37583671,0.00018672,2]
[377858224,1754580632720,-4020.46289037,0.000187,6]
[377858225,1754580632732,-379.53710963,0.000187,6]
[377858226,1754580632743,-321.18,0.000187,2]
[377858227,1754580632752,-272.44665069,0.00018744,2]
[377858228,1754580632762,-1474.30457936,0.00018752,2]
[377858229,1754580632773,-1292.992,0.00018753,2]
[377858230,1754580632782,-157.76883189,0.00018753,2]
[377858231,1754580632791,-600.0,0.00018785,2]
[377858232,1754580632801,-151.0,0.00018785,2]
[377858233,1754580632810,-151.0,0.00018785,2]
[377858234,1754580632820,-160.0,0.00018785,2]
[377858235,1754580632829,-151.0,0.00018785,2]
[377858236,1754580632838,-151.0,0.00018785,2]
[377858237,1754580632848,-151.0,0.00018785,2]
[377858239,1754580632857,-25.23181705,0.00018785,2]
[377858241,1754580632869,-355.84110437,0.00018785,2]
[377858243,1754580632879,-151.0,0.00018785,2]
[377858245,1754580632888,-22.89883601,0.00018785,2]
[377858257,1754580632996,-128.10116399,0.00018785,2]
[377858259,1754580633006,-251.07009559,0.00018785,2]
[377858261,1754580633015,-181.52702781,0.00018785,2]
[377858264,1754580633035,-318.47297219,0.00018785,2]
[377858266,1754580633045,-215.08797766,0.00018785,2]
[377858268,1754580633054,-401.19111454,0.00018785,2]
[377858270,1754580633064,-1599.334,0.0001879,2]
[377858271,1754580633073,-697.9982,0.0001879,2]
[377858272,1754580633083,-595.1956,0.0001879,2]
[377858274,1754580633092,-7210.81883197,0.00018791,2]
[377858276,1754580633102,-412.09964442,0.00018799,2]
[377858278,1754580633112,-2947.5504,0.000188,2]
[377858279,1754580633122,-1465.24982025,0.000188,2]
[377858280,1754580633134,-666.14428323,0.000188,2]
[377858281,1754580633146,-339.33576593,0.000188,2]
[377858282,1754580633188,-7089.64226319,0.000188,2]
[377858283,1754580633217,-6457.42303606,0.000188,2]
[377858301,1754580638976,-10596.89576155,0.000188,2]
[377858303,1754580638988,-2302.00366979,0.000188,2]
[377858305,1754580638998,-1000.0,0.000188,2]
[377858307,1754580639008,-1000.0,0.000188,2]
[377858310,1754580639017,-2500.0,0.000188,2]
[377858311,1754580639027,-5900.0,0.000188,6]
[377858314,1754580639037,-1545.233322,0.00018831,2]
[377858316,1754580639046,-500.0,0.0001884,2]
[377858318,1754580639056,-295.0,0.00018844,2]
[377858320,1754580639065,-7210.81883189,0.00018853,2]
[377858322,1754580639075,-321.12,0.00018878,2]
[377858323,1754580639084,-350.0,0.00018881,2]
[377858325,1754580639094,-506.23093669,0.0001889,2]
[377858327,1754580639103,-38800.42592735,0.0001889,2]
[377858330,1754580639114,-2801.67693812,0.0001889,2]
[377858332,1754580639126,-903.3562781,0.0001889,2]
[377858334,1754580639137,-1430.3328438,0.0001889,2]
[377858336,1754580639150,-18187.2705823,0.0001889,2]
[377858492,1754580640531,-3652.2467181,0.0001889,2]
[377858496,1754580640543,-584.55,0.0001889,2]
[377859264,1754580645763,-1063.85,0.0001889,2]
[377859281,1754580645919,-888.0,0.0001889,2]
[377859343,1754580646509,-11349.91451223,0.0001889,2]
[377859344,1754580646518,-295.0,0.00018891,2]
[377859345,1754580646528,-500.0,0.00018892,2]
[377859346,1754580646537,-500.0,0.00018892,2]
[377859347,1754580646547,-500.0,0.00018892,2]
[377859348,1754580646556,-500.0,0.00018892,2]
[377859349,1754580646567,-500.0,0.00018892,2]
[377859350,1754580646577,-412.89682251,0.00018892,2]
[377859351,1754580646586,-500.0,0.00018892,2]
[377859352,1754580646595,-500.0,0.00018892,2]
[377859353,1754580646604,-500.0,0.00018892,2]
[377859354,1754580646613,-500.0,0.00018892,2]
[377859356,1754580646624,-500.0,0.00018892,2]
[377859357,1754580646633,-500.0,0.00018892,2]
[377859359,1754580646642,-500.0,0.00018892,2]
[377859361,1754580646652,-378.61809305,0.00018892,2]
[377859363,1754580646661,-500.0,0.00018892,2]
[377859365,1754580646671,-500.0,0.00018892,2]
[377859367,1754580646680,-500.0,0.00018892,2]
[377859369,1754580646690,-564.34324997,0.00018892,2]
[377859371,1754580646699,-561.91658859,0.00018892,2]
[377859373,1754580646709,-500.0,0.00018892,2]
[377859375,1754580646718,-500.0,0.00018892,2]
[377859377,1754580646727,-500.0,0.00018892,2]
[377859379,1754580646736,-500.0,0.00018892,2]
[377859381,1754580646745,-500.0,0.00018892,2]
[377859383,1754580646754,-500.0,0.00018892,2]
[377859385,1754580646763,-500.0,0.00018892,2]
[377859387,1754580646773,-500.0,0.00018892,2]
[377859389,1754580646782,-500.0,0.00018892,2]
[377859391,1754580646791,-500.0,0.00018892,2]
[377859393,1754580646801,-500.0,0.00018892,2]
[377859395,1754580646810,-500.0,0.00018892,2]
[377859397,1754580646819,-500.0,0.00018892,2]
[377859399,1754580646828,-500.0,0.00018892,2]
[377859401,1754580646837,-500.0,0.00018892,2]
[377859403,1754580646847,-500.0,0.00018892,2]
[377859405,1754580646856,-500.0,0.00018892,2]
[377859407,1754580646865,-500.0,0.00018892,2]
[377859408,1754580646874,-500.0,0.00018892,2]
[377859410,1754580646883,-500.0,0.00018892,2]
[377859412,1754580646892,-500.0,0.00018892,2]
[377859414,1754580646901,-500.0,0.00018892,2]
[377859416,1754580646912,-500.0,0.00018892,2]
[377859418,1754580646921,-602.25651905,0.00018892,2]
[377859420,1754580646930,-500.0,0.00018892,2]
[377859422,1754580646939,-500.0,0.00018892,2]
[377859424,1754580646949,-500.0,0.00018892,2]
[377859427,1754580646958,-500.0,0.00018892,2]
[377859430,1754580646968,-500.0,0.00018892,2]
[377859433,1754580646978,-500.0,0.00018892,2]
[377859437,1754580646987,-500.0,0.00018892,2]
[377859439,1754580646996,-500.0,0.00018892,2]
[377859443,1754580647006,-500.0,0.00018892,2]
[377859445,1754580647016,-500.0,0.00018892,2]
[377859447,1754580647025,-500.0,0.00018892,2]
[377859449,1754580647034,-500.0,0.00018892,2]
[377859451,1754580647044,-500.0,0.00018892,2]
[377859453,1754580647054,-599.99999999,0.00018892,2]
[377859455,1754580647063,-500.0,0.00018892,2]
[377859457,1754580647073,-500.0,0.00018892,2]
[377859459,1754580647082,-5000.0,0.00018893,2]
[377859461,1754580647091,-204.51829023,0.00018893,2]
[377859463,1754580647101,-500.0,0.00018895,2]
[377859465,1754580647110,-448.81475243,0.000189,2]
[377859467,1754580647119,-41291.99988804,0.000189,2]
[377859469,1754580647129,-160.12078098,0.000189,2]
[377859471,1754580647142,-1790.46495,0.000189,2]
[377859473,1754580647152,-7300.0,0.000189,6]
[377859475,1754580647161,-299.66594865,0.000189,2]
[377859477,1754580647171,-932.23265596,0.000189,2]
[377859479,1754580647181,-295.0,0.00018906,2]
[377859481,1754580647190,-1616.16206465,0.00018911,2]
[377859483,1754580647200,-7210.81883189,0.00018916,2]
[377859485,1754580647210,-295.0,0.00018919,2]
[377859487,1754580647220,-295.0,0.00018928,2]
[377859489,1754580647229,-500.0,0.0001895,2]
[377859491,1754580647239,-4000.0,0.00018957,2]
[377859493,1754580647248,-578.66211789,0.00018957,2]
[377859495,1754580647258,-5627.0,0.00018962,2]
[377859497,1754580647267,-501.44711176,0.00018973,2]
[377859499,1754580647279,-500.0,0.00018973,2]
[377859501,1754580647289,-500.0,0.00018973,2]
[377859503,1754580647298,-500.0,0.00018973,2]
[377859505,1754580647307,-500.0,0.00018973,2]
[377859507,1754580647317,-500.0,0.00018973,2]
[377859509,1754580647326,-500.0,0.00018973,2]
[377859511,1754580647336,-500.0,0.00018973,2]
[377859513,1754580647346,-500.0,0.00018973,2]
[377859515,1754580647355,-500.0,0.00018973,2]
[377859517,1754580647365,-170.2206052,0.00018973,2]
[377859519,1754580647374,-500.0,0.00018973,2]
[377859521,1754580647384,-510.94443415,0.00018973,2]
[377859523,1754580647393,-500.0,0.00018973,2]
[377859525,1754580647402,-500.0,0.00018973,2]
[377859527,1754580647411,-500.0,0.00018973,2]
[377859529,1754580647421,-295.0,0.00018974,2]
[377859531,1754580647430,-7210.81883189,0.00018978,2]
[377859533,1754580647439,-150.0,0.00018986,2]
[377859535,1754580647448,-317.33792329,0.00018988,2]
[377859537,1754580647457,-150.0,0.00018988,2]
[377859539,1754580647466,-150.0,0.00018988,2]
[377859541,1754580647476,-150.0,0.00018988,2]
[377859543,1754580647485,-150.0,0.00018988,2]
[377859545,1754580647499,-150.0,0.00018988,2]
[377859546,1754580647508,-500.0,0.00018988,2]
[377859548,1754580647518,-43143.16781126,0.0001899,2]
[377859550,1754580647527,-512.72017748,0.0001899,2]
[377859552,1754580647538,-151.0,0.0001899,2]
[377859554,1754580647547,-151.0,0.0001899,2]
[377859556,1754580647556,-151.0,0.0001899,2]
[377859558,1754580647566,-151.0,0.0001899,2]
[377859560,1754580647576,-151.985063,0.0001899,2]
[377859562,1754580647586,-151.0,0.0001899,2]
[377859564,1754580647595,-151.0,0.0001899,2]
[377859566,1754580647604,-151.985063,0.0001899,2]
[377859568,1754580647614,-151.0,0.0001899,2]
[377859570,1754580647624,-152.815351,0.0001899,2]
[377859572,1754580647633,-154.3503,0.0001899,2]
[377859574,1754580647644,-151.0,0.0001899,2]
[377859576,1754580647653,-1687.09080731,0.0001899,2]
[377859578,1754580647662,-151.0,0.0001899,2]
[377859580,1754580647673,-151.0,0.0001899,2]
[377859582,1754580647683,-151.0,0.0001899,2]
[377859584,1754580647693,-151.0,0.0001899,2]
[377859586,1754580647703,-151.0,0.0001899,2]
[377859588,1754580647712,-193.49867067,0.0001899,2]
[377859590,1754580647722,-155.59304,0.0001899,2]
[377859592,1754580647731,-224.12276321,0.00018992,2]
[377859594,1754580647740,-500.0,0.00018992,2]
[377859596,1754580647749,-285.45618755,0.00018992,2]
[377859597,1754580647759,-268.65667942,0.00018992,2]
[377859600,1754580647769,-452.17109653,0.00018992,2]
[377859601,1754580647778,-194.7436276,0.00018992,2]
[377859604,1754580647790,-151.0,0.00018992,2]
[377859605,1754580647799,-151.0,0.00018992,2]
[377859607,1754580647808,-151.0,0.00018992,2]
[377859609,1754580647818,-40023.475137,0.00018992,2]
[377859611,1754580647827,-30804.3615,0.00018992,2]
[377859613,1754580647836,-151.0,0.00018993,2]
[377859615,1754580647845,-262.959104,0.00018993,2]
[377859617,1754580647854,-151.0,0.00018993,2]
[377859619,1754580647863,-152.738561,0.00018993,2]
[377859621,1754580647873,-214.862165,0.00018993,2]
[377859623,1754580647883,-151.0,0.00018993,2]
[377859625,1754580647892,-151.0,0.00018993,2]
[377859627,1754580647902,-151.0,0.00018993,2]
[377859629,1754580647911,-151.0,0.00018993,2]
[377859631,1754580647920,-151.0,0.00018993,2]
[377859633,1754580647929,-151.0,0.00018993,2]
[377859635,1754580647939,-151.0,0.00018993,2]
[377859637,1754580647948,-151.0,0.00018993,2]
[377859639,1754580647957,-151.0,0.00018993,2]
[377859641,1754580647967,-151.0,0.00018993,2]
[377859643,1754580647976,-151.0,0.00018993,2]
[377859645,1754580647986,-151.0,0.00018993,2]
[377859647,1754580647995,-151.0,0.00018993,2]
[377859649,1754580648005,-151.0,0.00018993,2]
[377859651,1754580648015,-178.498749,0.00018993,2]
[377859653,1754580648025,-151.0,0.00018993,2]
[377859655,1754580648035,-155.084192,0.00018993,2]
[377859657,1754580648044,-151.0,0.00018993,2]
[377859659,1754580648053,-280.419928,0.00018993,2]
[377859661,1754580648063,-151.0,0.00018993,2]
[377859663,1754580648072,-151.0,0.00018993,2]
[377859665,1754580648082,-154.286899,0.00018993,2]
[377859667,1754580648091,-151.0,0.00018993,2]
[377859669,1754580648100,-151.0,0.00018993,2]
[377859671,1754580648110,-151.0,0.00018993,2]
[377859673,1754580648119,-151.0,0.00018993,2]
[377859675,1754580648129,-151.0,0.00018993,2]
[377859677,1754580648139,-151.0,0.00018993,2]
[377859679,1754580648150,-996.226807,0.00018993,2]
[377859681,1754580648160,-996.226807,0.00018993,2]
[377859683,1754580648170,-151.0,0.00018993,2]
[377859685,1754580648179,-151.0,0.00018993,2]
[377859687,1754580648191,-151.0,0.00018993,2]
[377859689,1754580648200,-151.0,0.00018993,2]
[377859691,1754580648209,-151.0,0.00018993,2]
[377859693,1754580648219,-151.0,0.00018993,2]
[377859695,1754580648229,-22263.61224328,0.00018993,2]
[377859754,1754580649225,-3055.00003,0.00018993,2]
[377859755,1754580649238,-521.06272613,0.00018993,2]
[377859756,1754580649250,-3223.15810856,0.00018993,2]
[377859758,1754580710965,195.89,0.00013699,2]
[377859773,1754580734806,150.0,0.000168,2]
[377859774,1754580735217,150.0,0.0001798,2]
[377859778,1754580833731,150.0,0.00017644,2]
[377859779,1754580834094,448.55734094,0.00017724,2]
[377859780,1754580834370,526.08577024,0.00017804,2]
[377859781,1754580834715,603.61419954,0.00017885,2]
[377859782,1754580835691,681.14262884,0.00017965,2]
[377859793,1754581006051,500.0,0.00019767,7]
[377859794,1754581006428,500.0,0.00019767,7]
[377859795,1754581007688,500.0,0.00019767,7]
[377859796,1754581008095,500.0,0.00019767,7]
[377859797,1754581008501,500.0,0.00019767,7]
[377859802,1754581009092,571.62746075,0.00019767,7]
[377859803,1754581021936,589.15,0.0001782,2]
[377859806,1754581055462,199.79,0.00017817,2]
[377859807,1754581073074,1453.48,0.00017808,2]
[377859808,1754581099155,491.11,0.00017808,2]
[377859809,1754581113587,2593.42,0.00017808,2]
[377859810,1754581115487,222.54,0.00017808,2]
[377859811,1754581115709,222.54,0.00017986,2]
[377859812,1754581129416,150.0,0.00017806,2]
[377859814,1754581142313,17740.5,0.00017803,2]
[377859815,1754581152781,150.0,0.0001748,2]
[377859816,1754581152917,409.76889963,0.00017559,2]
[377859817,1754581153232,480.59315389,0.00017639,2]
[377859818,1754581153330,551.41740815,0.00017718,2]
[377859819,1754581153439,622.2416624,0.00017798,2]
[377859820,1754581153777,693.06591666,0.00017877,2]
[377859821,1754581156454,763.89017092,0.00017957,2]
[377859822,1754581168878,16607.59,0.00017803,2]
[377859823,1754581179274,403.92188187,0.00017928,2]
[377859826,1754581203456,1733.65,0.00017788,2]
[377859828,1754581225625,944.69,0.0001778,2]
[377859830,1754581259917,150.0,0.000168,2]
[377859831,1754581260146,150.0,0.0001798,2]
[377859832,1754581261832,537.85,0.00015068,2]
[377859833,1754581261972,537.85,0.00016652,2]
[377859834,1754581280210,2028.05,0.00017733,2]
[377859837,1754581294817,1302.87,0.00017733,2]
[377859839,1754581321657,223.77,0.00017733,2]
[377859841,1754581378409,166.84,0.00017621,2]
[377859842,1754581440697,257.23,0.00017607,2]
[377859845,1754581473905,150.0,0.00017644,2]
[377859846,1754581474225,465.67203597,0.00017724,2]
[377859847,1754581474629,546.15856071,0.00017804,2]
[377859848,1754581475068,626.64508544,0.00017885,2]
[377859849,1754581475372,707.13161018,0.00017965,2]
[377859850,1754581479137,1000.0,0.00017638,2]
[377859851,1754581484993,199.0,0.00019767,7]
[377859854,1754581496331,498.29,0.00017577,2]
[377859856,1754581509021,301.02,0.00017589,3]
[377859858,1754581521198,150.0,0.00017088,2]
[377859859,1754581525637,222.0,0.00019767,7]
[377859864,1754581635789,263.681903,0.00017927,2]
[377859865,1754581640719,2562.19,0.0001756,2]
[377859866,1754581662137,157.55,0.00017536,2]
[377859867,1754581662477,1000.0,0.00017536,2]
[377859868,1754581665316,250.0,0.00017536,2]
[377859869,1754581679031,176.27203627,0.00017918,2]
[377859870,1754581684966,176.27203626,0.00018,2]
[377859874,1754581754756,30441.43,0.00017556,2]
[377859875,1754581756580,193.99,0.00013699,2]
[377859882,1754581785068,150.0,0.000168,2]
[377859883,1754581785288,150.0,0.0001798,2]
[377859884,1754581792378,150.0,0.0001748,2]
[377859885,1754581792636,773.90972351,0.00017559,2]
[377859886,1754581793284,1041.43407238,0.00017718,2]
[377859887,1754581793630,1175.19624681,0.00017798,2]
[377859888,1754581793907,1308.95842125,0.00017877,2]
[377859889,1754581794264,1442.72059568,0.00017957,2]
[377859890,1754581795818,907.67189795,0.00017639,2]
[377859892,1754581804259,548.80180824,0.00017918,2]
[377859897,1754581831691,-300.0,0.00018017,2]
[377859898,1754581831703,-300.0,0.00018017,2]
[377859899,1754581831715,-300.0,0.00018017,2]
[377859900,1754581831724,-300.0,0.00018017,2]
[377859901,1754581831734,-1200.0,0.00018017,2]
[377859902,1754581831744,-1200.0,0.00018018,2]
[377859903,1754581831753,-193.0,0.00018018,2]
[377859904,1754581831763,-150.0,0.00018018,2]
[377859905,1754581831772,-151.0,0.00018019,2]
[377859906,1754581831783,-151.0,0.00018019,2]
[377859913,1754581832094,-500.0,0.00018019,2]
[377859915,1754581832104,-151.0,0.00018019,2]
[377859917,1754581832113,-151.0,0.00018019,2]
[377859919,1754581832123,-151.0,0.00018019,2]
[377859921,1754581832133,-151.0,0.00018019,2]
[377859922,1754581832142,-151.0,0.00018019,2]
[377859924,1754581832152,-151.0,0.00018019,2]
[377859926,1754581832161,-151.0,0.00018019,2]
[377859928,1754581832173,-151.0,0.00018019,2]
[377859930,1754581832183,-151.0,0.00018019,2]
[377859932,1754581832192,-342.69046269,0.00018019,2]
[377859934,1754581832202,-151.0,0.00018019,2]
[377859936,1754581832211,-151.0,0.00018019,2]
[377859938,1754581832220,-151.0,0.00018019,2]
[377859940,1754581832230,-151.0,0.00018019,2]
[377859942,1754581832239,-151.0,0.00018019,2]
[377859946,1754581832248,-151.0,0.00018019,2]
[377859949,1754581832258,-151.0,0.00018019,2]
[377859951,1754581832268,-151.0,0.00018019,2]
[377859953,1754581832278,-151.0,0.00018019,2]
[377859955,1754581832288,-151.0,0.00018019,2]
[377859957,1754581832298,-151.0,0.00018019,2]
[377859959,1754581832308,-151.0,0.00018019,2]
[377859961,1754581832318,-151.0,0.00018019,2]
[377859963,1754581832327,-151.0,0.00018019,2]
[377859965,1754581832336,-151.0,0.00018019,2]
[377859967,1754581832346,-151.0,0.00018019,2]
[377859969,1754581832355,-151.0,0.00018019,2]
[377859971,1754581832365,-151.0,0.00018019,2]
[377859973,1754581832374,-151.0,0.00018019,2]
[377859975,1754581832383,-151.0,0.00018019,2]
[377859977,1754581832392,-151.0,0.00018019,2]
[377859979,1754581832402,-500.0,0.00018019,2]
[377859981,1754581832411,-500.0,0.00018019,2]
[377859983,1754581832422,-500.0,0.00018019,2]
[377859984,1754581832432,-500.0,0.00018019,2]
[377859985,1754581832441,-500.0,0.00018019,2]
[377859986,1754581832451,-500.0,0.00018019,2]
[377859987,1754581832461,-500.0,0.00018019,2]
[377859988,1754581832473,-500.0,0.00018019,2]
[377859989,1754581832484,-500.0,0.00018019,2]
[377859990,1754581832494,-500.0,0.00018019,2]
[377859991,1754581832503,-500.0,0.00018019,2]
[377859992,1754581832514,-500.0,0.00018019,2]
[377859993,1754581832523,-500.0,0.00018019,2]
[377859994,1754581832533,-366.10586358,0.00018019,2]
[377859995,1754581832543,-200.0,0.00018019,2]
[377859996,1754581832552,-500.0,0.00018019,2]
[377859997,1754581832562,-500.0,0.00018019,2]
[377859998,1754581832572,-500.0,0.00018019,2]
[377859999,1754581832584,-500.0,0.00018019,2]
[377860000,1754581832593,-324.359375,0.00018019,2]